[Event "*** MasterClass Titled Tuesday Blitz"]
[Site "Chess.com"]
[Date "2017.12.12"]
[Round "9"]
[White "Vincent_Vega95"]
[Black "DrVelja"]
[Result "0-1"]
[WhiteElo "2572"]
[BlackElo "2562"]
[TimeControl "180+2"]
[EndTime "15:07:27 PST"]
[Termination "DrVelja won by resignation"]

1. Nf3 {[%clk 0:02:59.2]} 1... Nf6 {[%clk 0:03:00.5]} 2. c4 {[%clk 0:03:00.2]}
2... g6 {[%clk 0:03:02]} 3. Nc3 {[%clk 0:03:01.4]} 3... Bg7 {[%clk 0:03:03.6]}
4. e4 {[%clk 0:03:02.1]} 4... d6 {[%clk 0:03:04.9]} 5. d4 {[%clk 0:03:03.6]}
5... O-O {[%clk 0:03:06.5]} 6. Be2 {[%clk 0:03:05.3]} 6... e5 {[%clk 0:03:07.9]}
7. O-O {[%clk 0:03:07.2]} 7... Nc6 {[%clk 0:03:09.5]} 8. d5 {[%clk 0:03:08.2]}
8... Ne7 {[%clk 0:03:11.1]} 9. b4 {[%clk 0:03:09.7]} 9... Ne8 {[%clk 0:03:11.6]}
10. c5 {[%clk 0:03:10]} 10... f5 {[%clk 0:03:12]} 11. Nd2 {[%clk 0:03:10.2]}
11... Nf6 {[%clk 0:03:12.8]} 12. f3 {[%clk 0:03:09.2]} 12... f4 {[%clk 0:03:14]}
13. Nc4 {[%clk 0:03:07.1]} 13... g5 {[%clk 0:03:14.7]} 14. a4 {[%clk 0:03:08]}
14... h5 {[%clk 0:03:14.1]} 15. Ba3 {[%clk 0:03:08.6]} 15... Ng6 {[%clk
0:03:15.3]} 16. b5 {[%clk 0:03:09.6]} 16... dxc5 {[%clk 0:03:16.2]} 17. Bxc5
{[%clk 0:03:10.4]} 17... Rf7 {[%clk 0:03:17.8]} 18. Kh1 {[%clk 0:02:57.4]} 18...
g4 {[%clk 0:03:18.2]} 19. a5 {[%clk 0:02:52.7]} 19... g3 {[%clk 0:03:14.4]} 20.
b6 {[%clk 0:02:53.8]} 20... Bf8 {[%clk 0:02:51.6]} 21. bxc7 {[%clk 0:02:40.7]}
21... Rxc7 {[%clk 0:02:49.2]} 22. Bg1 {[%clk 0:02:40.3]} 22... Nh7 {[%clk
0:02:40.1]} 23. d6 {[%clk 0:02:39.4]} 23... Rf7 {[%clk 0:02:27.6]} 24. Qd5
{[%clk 0:02:24.1]} 24... Qg5 {[%clk 0:02:15.9]} 25. a6 {[%clk 0:02:02.6]} 25...
Bh3 {[%clk 0:01:19.1]} 26. Bc5 {[%clk 0:01:16.6]} 26... Bxg2+ {[%clk 0:00:34.9]}
27. Kxg2 {[%clk 0:01:13.9]} 27... Nh4+ {[%clk 0:00:36.4]} 28. Kh3 {[%clk
0:00:33]} 28... Ng6 {[%clk 0:00:37.1]} 29. Rg1 {[%clk 0:00:24.6]} 29... Qh4+
{[%clk 0:00:35.5]} 30. Kg2 {[%clk 0:00:25.8]} 30... Qxh2+ {[%clk 0:00:37.1]} 31.
Kf1 {[%clk 0:00:27.2]} 31... Nf6 {[%clk 0:00:24.1]} 32. Qe6 {[%clk 0:00:28.5]}
32... Re8 {[%clk 0:00:20.6]} 33. axb7 {[%clk 0:00:26.9]} 33... Rxe6 {[%clk
0:00:21.7]} 34. b8=Q {[%clk 0:00:27.9]} 34... Ng4 {[%clk 0:00:16.1]} 35. Ke1
{[%clk 0:00:15.7]} 35... Ne3 {[%clk 0:00:15.2]} 36. Bxe3 {[%clk 0:00:06.3]}
36... fxe3 {[%clk 0:00:15.9]} 37. Rf1 {[%clk 0:00:05.8]} 37... g2 {[%clk
0:00:15.2]} 38. Nxe3 {[%clk 0:00:04.6]} 38... gxf1=Q+ {[%clk 0:00:13.8]} 39.
Nxf1 {[%clk 0:00:06.4]} 39... Qh4+ {[%clk 0:00:13.6]} 40. Kd1 {[%clk 0:00:07.8]}
40... Rxd6+ {[%clk 0:00:14.5]} 41. Kc2 {[%clk 0:00:09.3]} 41... Nf4 {[%clk
0:00:13]} 42. Bc4 {[%clk 0:00:09.8]} 42... Qf2+ {[%clk 0:00:12.8]} 43. Kc1
{[%clk 0:00:07.2]} 43... Nd3+ {[%clk 0:00:13.4]} 44. Bxd3 {[%clk 0:00:06.3]}
44... Rxd3 {[%clk 0:00:15]} 0-1

[Event "*** MasterClass Titled Tuesday Blitz"]
[Site "Chess.com"]
[Date "2017.12.12"]
[Round "9"]
[White "Arm-Akiba"]
[Black "A-Fier"]
[Result "1-0"]
[WhiteElo "2706"]
[BlackElo "2636"]
[TimeControl "180+2"]
[EndTime "15:07:29 PST"]
[Termination "Arm-Akiba won by resignation"]

1. d4 {[%clk 0:03:01.9]} 1... Nf6 {[%clk 0:03:00.7]} 2. Nf3 {[%clk 0:03:03.1]}
2... g6 {[%clk 0:03:01.6]} 3. g3 {[%clk 0:03:04.1]} 3... Bg7 {[%clk 0:03:02.7]}
4. Bg2 {[%clk 0:03:05.5]} 4... O-O {[%clk 0:03:03.9]} 5. O-O {[%clk 0:03:06.5]}
5... c5 {[%clk 0:03:04.9]} 6. dxc5 {[%clk 0:03:06.3]} 6... Qa5 {[%clk
0:03:03.5]} 7. Be3 {[%clk 0:02:47.6]} 7... Ng4 {[%clk 0:02:52.6]} 8. Bd4 {[%clk
0:02:47.6]} 8... e5 {[%clk 0:02:53.5]} 9. Bc3 {[%clk 0:02:41.5]} 9... Qxc5
{[%clk 0:02:54.3]} 10. h3 {[%clk 0:02:40.6]} 10... Nh6 {[%clk 0:02:55.2]} 11.
Qd2 {[%clk 0:02:30.5]} 11... Nc6 {[%clk 0:02:53]} 12. Rd1 {[%clk 0:02:17.5]}
12... Nf5 {[%clk 0:02:51.5]} 13. e3 {[%clk 0:02:04.9]} 13... Rd8 {[%clk
0:02:43.4]} 14. g4 {[%clk 0:01:46.3]} 14... Nfe7 {[%clk 0:02:43.9]} 15. Qd6
{[%clk 0:01:37.6]} 15... Qxd6 {[%clk 0:02:25.7]} 16. Rxd6 {[%clk 0:01:37.8]}
16... a5 {[%clk 0:02:12.3]} 17. Na3 {[%clk 0:01:35.2]} 17... Ra6 {[%clk
0:02:13.4]} 18. Rad1 {[%clk 0:01:33.4]} 18... Rb6 {[%clk 0:01:45.3]} 19. Bxa5
{[%clk 0:01:14.4]} 19... Rxb2 {[%clk 0:01:46.2]} 20. Bxd8 {[%clk 0:01:14.9]}
20... Nxd8 {[%clk 0:01:48.1]} 21. Nc4 {[%clk 0:01:11.1]} 21... Rxa2 {[%clk
0:01:44.7]} 22. Nb6 {[%clk 0:01:09.5]} 22... Rxc2 {[%clk 0:01:45.1]} 23. Nxc8
{[%clk 0:01:07.8]} 23... Rxc8 {[%clk 0:01:33.5]} 24. Rxd7 {[%clk 0:01:08.2]}
24... Ndc6 {[%clk 0:01:35.1]} 25. Rxb7 {[%clk 0:01:07.2]} 25... h6 {[%clk
0:01:30.3]} 26. Rdd7 {[%clk 0:01:06]} 26... Bf6 {[%clk 0:01:28.5]} 27. Nd2
{[%clk 0:01:04.3]} 27... Rd8 {[%clk 0:01:18.7]} 28. Bxc6 {[%clk 0:00:59.7]}
28... Nxc6 {[%clk 0:01:19.5]} 29. Ne4 {[%clk 0:01:00]} 29... Bh4 {[%clk
0:01:12.4]} 30. Rbc7 {[%clk 0:00:55.5]} 30... Rxd7 {[%clk 0:01:12]} 31. Rxd7
{[%clk 0:00:57]} 31... Ne7 {[%clk 0:01:04.7]} 32. Kg2 {[%clk 0:00:57.1]} 32...
Kf8 {[%clk 0:01:04.8]} 33. Nd6 {[%clk 0:00:57.3]} 33... Bg5 {[%clk 0:01:03.6]}
34. Rd8+ {[%clk 0:00:53.6]} 34... Kg7 {[%clk 0:01:04.1]} 35. Ne8+ {[%clk
0:00:52.9]} 35... Kh7 {[%clk 0:01:05.3]} 36. Rd7 {[%clk 0:00:53.2]} 36... Kg8
{[%clk 0:01:02.1]} 37. Nc7 {[%clk 0:00:54]} 37... Kf8 {[%clk 0:01:02.1]} 38. Kf3
{[%clk 0:00:52.3]} 38... Bh4 {[%clk 0:01:00.8]} 39. Kg2 {[%clk 0:00:52.8]} 39...
Kg7 {[%clk 0:00:57.6]} 40. Nd5 {[%clk 0:00:50.7]} 40... Nxd5 {[%clk 0:00:56.4]}
41. Rxd5 {[%clk 0:00:51.6]} 41... Kf6 {[%clk 0:00:58]} 42. Rd6+ {[%clk
0:00:50.3]} 42... Ke7 {[%clk 0:00:58.8]} 43. Ra6 {[%clk 0:00:51.3]} 43... Kd7
{[%clk 0:00:53.8]} 44. Kf3 {[%clk 0:00:52.2]} 44... Ke7 {[%clk 0:00:54.7]} 45.
Ke2 {[%clk 0:00:53.3]} 45... Kd7 {[%clk 0:00:55]} 46. f3 {[%clk 0:00:53.1]}
46... Be7 {[%clk 0:00:43.8]} 47. Kd3 {[%clk 0:00:49.3]} 47... Bd6 {[%clk
0:00:45]} 48. Kc4 {[%clk 0:00:42.5]} 48... Ke6 {[%clk 0:00:44.6]} 49. e4 {[%clk
0:00:43.2]} 49... h5 {[%clk 0:00:24.9]} 50. gxh5 {[%clk 0:00:40.4]} 50... gxh5
{[%clk 0:00:25.8]} 51. Rb6 {[%clk 0:00:41.4]} 51... f6 {[%clk 0:00:23]} 52. Ra6
{[%clk 0:00:42.2]} 52... h4 {[%clk 0:00:21]} 53. Rb6 {[%clk 0:00:42.7]} 53...
Ke7 {[%clk 0:00:20.4]} 54. Kd5 {[%clk 0:00:43.3]} 54... Bc7 {[%clk 0:00:21.5]}
55. Rb7 {[%clk 0:00:44.2]} 55... Kd7 {[%clk 0:00:22.8]} 56. Ra7 {[%clk 0:00:39]}
1-0

[Event "*** MasterClass Titled Tuesday Blitz"]
[Site "Chess.com"]
[Date "2017.12.12"]
[Round "9"]
[White "gmcorrales"]
[Black "ShimanovAlex"]
[Result "0-1"]
[WhiteElo "2627"]
[BlackElo "2669"]
[TimeControl "180+2"]
[EndTime "15:07:33 PST"]
[Termination "ShimanovAlex won by checkmate"]

1. d4 {[%clk 0:03:01.9]} 1... Nf6 {[%clk 0:02:58.1]} 2. c4 {[%clk 0:03:02.7]}
2... g6 {[%clk 0:02:59.2]} 3. Nc3 {[%clk 0:03:03.3]} 3... Bg7 {[%clk 0:03:00.6]}
4. Bf4 {[%clk 0:03:02.9]} 4... d6 {[%clk 0:03:00.6]} 5. e3 {[%clk 0:03:04.2]}
5... O-O {[%clk 0:03:01.7]} 6. Nf3 {[%clk 0:03:05.5]} 6... Nc6 {[%clk
0:03:01.2]} 7. Be2 {[%clk 0:03:06.2]} 7... Nd7 {[%clk 0:03:00.9]} 8. h3 {[%clk
0:03:07]} 8... e5 {[%clk 0:03:01.8]} 9. Bh2 {[%clk 0:03:07.9]} 9... f5 {[%clk
0:02:58.6]} 10. O-O {[%clk 0:03:07.9]} 10... e4 {[%clk 0:02:55.5]} 11. Nd2
{[%clk 0:03:00.8]} 11... Nf6 {[%clk 0:02:56.1]} 12. f3 {[%clk 0:02:55.8]} 12...
exf3 {[%clk 0:02:54.7]} 13. Nxf3 {[%clk 0:02:57.7]} 13... Re8 {[%clk 0:02:55.7]}
14. Bf4 {[%clk 0:02:52.7]} 14... h6 {[%clk 0:02:55.5]} 15. Qd2 {[%clk
0:02:52.6]} 15... g5 {[%clk 0:02:52.7]} 16. Bh2 {[%clk 0:02:53.6]} 16... Qe7
{[%clk 0:02:50.5]} 17. Nd1 {[%clk 0:02:29.7]} 17... f4 {[%clk 0:02:41]} 18. d5
{[%clk 0:02:24.1]} 18... fxe3 {[%clk 0:02:31.8]} 19. Qe1 {[%clk 0:02:16.8]}
19... Nd8 {[%clk 0:02:29.5]} 20. a4 {[%clk 0:02:17.5]} 20... Nh5 {[%clk
0:01:49.1]} 21. Ra3 {[%clk 0:02:08.8]} 21... Nf4 {[%clk 0:01:49.9]} 22. Rxe3
{[%clk 0:02:07.3]} 22... Qf8 {[%clk 0:01:42.4]} 23. Bxf4 {[%clk 0:01:42.9]}
23... gxf4 {[%clk 0:01:42.1]} 24. Rxe8 {[%clk 0:01:18]} 24... Qxe8 {[%clk
0:01:43.3]} 25. Qd2 {[%clk 0:01:19.1]} 25... Nf7 {[%clk 0:01:34.5]} 26. Re1
{[%clk 0:01:18.1]} 26... Qxa4 {[%clk 0:01:26.7]} 27. Bd3 {[%clk 0:01:16.3]}
27... Ne5 {[%clk 0:01:17.9]} 28. Nxe5 {[%clk 0:01:06.5]} 28... Bxe5 {[%clk
0:01:16.5]} 29. Nf2 {[%clk 0:01:04.3]} 29... Qe8 {[%clk 0:00:55.2]} 30. Qxf4
{[%clk 0:01:04.8]} 30... Qf8 {[%clk 0:00:52.1]} 31. Qe4 {[%clk 0:01:03.7]} 31...
Qg7 {[%clk 0:00:53.1]} 32. Rf1 {[%clk 0:00:54.2]} 32... Bd7 {[%clk 0:00:49.3]}
33. Ng4 {[%clk 0:00:55]} 33... Bxg4 {[%clk 0:00:49.8]} 34. hxg4 {[%clk
0:00:56.9]} 34... Rf8 {[%clk 0:00:45]} 35. Rxf8+ {[%clk 0:00:52.1]} 35... Kxf8
{[%clk 0:00:46.3]} 36. Qf5+ {[%clk 0:00:53.6]} 36... Qf7 {[%clk 0:00:47.6]} 37.
b3 {[%clk 0:00:51.8]} 37... Kg7 {[%clk 0:00:47.5]} 38. Qh7+ {[%clk 0:00:51.7]}
38... Kf8 {[%clk 0:00:46.5]} 39. Qxh6+ {[%clk 0:00:52.8]} 39... Qg7 {[%clk
0:00:48.1]} 40. Qe6 {[%clk 0:00:50.8]} 40... Qg5 {[%clk 0:00:38.4]} 41. Qc8+
{[%clk 0:00:42.8]} 41... Kg7 {[%clk 0:00:38.7]} 42. Qxc7+ {[%clk 0:00:43.7]}
42... Kf8 {[%clk 0:00:35.8]} 43. Qc8+ {[%clk 0:00:44.4]} 43... Kg7 {[%clk
0:00:36]} 44. Qd7+ {[%clk 0:00:35.9]} 44... Kf8 {[%clk 0:00:35.5]} 45. Kf1
{[%clk 0:00:21.7]} 45... Qe3 {[%clk 0:00:21.7]} 46. Qf5+ {[%clk 0:00:10.3]}
46... Ke7 {[%clk 0:00:21.8]} 47. g5 {[%clk 0:00:08.5]} 47... Kd8 {[%clk
0:00:15.8]} 48. g6 {[%clk 0:00:03.3]} 48... Bg3 {[%clk 0:00:06.8]} 49. Qf7
{[%clk 0:00:02.3]} 49... Qe1# {[%clk 0:00:06.8]} 0-1

[Event "*** MasterClass Titled Tuesday Blitz"]
[Site "Chess.com"]
[Date "2017.12.12"]
[Round "9"]
[White "GMBenjaminBok"]
[Black "GMKrikor"]
[Result "0-1"]
[WhiteElo "2622"]
[BlackElo "2663"]
[TimeControl "180+2"]
[EndTime "15:07:36 PST"]
[Termination "GMKrikor won on time"]

1. Nf3 {[%clk 0:03:01.9]} 1... d5 {[%clk 0:03:00.1]} 2. g3 {[%clk 0:03:02.6]}
2... Nf6 {[%clk 0:03:01]} 3. Bg2 {[%clk 0:03:03.8]} 3... g6 {[%clk 0:03:01.4]}
4. c4 {[%clk 0:03:03.9]} 4... dxc4 {[%clk 0:02:58.3]} 5. Na3 {[%clk 0:03:02.9]}
5... Bg7 {[%clk 0:02:58.9]} 6. Nxc4 {[%clk 0:03:03.8]} 6... O-O {[%clk
0:03:00.2]} 7. O-O {[%clk 0:03:04.4]} 7... Nc6 {[%clk 0:02:59.4]} 8. d3 {[%clk
0:02:51.3]} 8... Nd5 {[%clk 0:02:55.7]} 9. Bd2 {[%clk 0:02:49.9]} 9... Nb6
{[%clk 0:02:49.6]} 10. Nxb6 {[%clk 0:02:19.4]} 10... axb6 {[%clk 0:02:50.1]} 11.
Bc3 {[%clk 0:02:21.3]} 11... Bxc3 {[%clk 0:02:24]} 12. bxc3 {[%clk 0:02:23.2]}
12... e5 {[%clk 0:02:25.4]} 13. Qc1 {[%clk 0:02:22]} 13... Qe7 {[%clk
0:02:18.3]} 14. a3 {[%clk 0:02:06.6]} 14... Ra5 {[%clk 0:02:08.3]} 15. Qb2
{[%clk 0:01:50]} 15... Bd7 {[%clk 0:01:42.8]} 16. Nd2 {[%clk 0:01:47.6]} 16...
Rfa8 {[%clk 0:01:40.4]} 17. Nc4 {[%clk 0:01:46.4]} 17... Ra4 {[%clk 0:01:38.7]}
18. Rfc1 {[%clk 0:01:35.2]} 18... Be6 {[%clk 0:01:37.5]} 19. Bxc6 {[%clk
0:01:32.6]} 19... bxc6 {[%clk 0:01:31.1]} 20. Nxe5 {[%clk 0:01:33.5]} 20... Bd5
{[%clk 0:01:26.2]} 21. c4 {[%clk 0:01:33.9]} 21... Be6 {[%clk 0:01:18.1]} 22.
Nxc6 {[%clk 0:01:34.4]} 22... Qd6 {[%clk 0:01:00.8]} 23. Nb4 {[%clk 0:01:14.8]}
23... h5 {[%clk 0:00:55.9]} 24. h4 {[%clk 0:01:13.4]} 24... c6 {[%clk
0:00:52.9]} 25. d4 {[%clk 0:01:10.1]} 25... Bg4 {[%clk 0:00:48.8]} 26. c5 {[%clk
0:00:55.7]} 26... bxc5 {[%clk 0:00:49.9]} 27. Rxc5 {[%clk 0:00:56.5]} 27... Qe7
{[%clk 0:00:35.1]} 28. Re5 {[%clk 0:00:49.3]} 28... Qd6 {[%clk 0:00:26.1]} 29.
Qc3 {[%clk 0:00:47]} 29... Bd7 {[%clk 0:00:14.6]} 30. e3 {[%clk 0:00:42.8]}
30... Qf6 {[%clk 0:00:15.7]} 31. Kg2 {[%clk 0:00:41.8]} 31... Bg4 {[%clk
0:00:16.4]} 32. e4 {[%clk 0:00:38.1]} 32... Rxb4 {[%clk 0:00:14.9]} 33. axb4
{[%clk 0:00:12.6]} 33... Rxa1 {[%clk 0:00:15.3]} 34. Re8+ {[%clk 0:00:13]} 34...
Kh7 {[%clk 0:00:13.6]} 35. e5 {[%clk 0:00:06.1]} 35... Bf3+ {[%clk 0:00:12]} 36.
Qxf3 {[%clk 0:00:05.8]} 36... Rg1+ {[%clk 0:00:13.6]} 37. Kxg1 {[%clk
0:00:07.2]} 37... Qxf3 {[%clk 0:00:15.3]} 38. Re7 {[%clk 0:00:05.9]} 38... Kg8
{[%clk 0:00:13.4]} 39. Rd7 {[%clk 0:00:05.4]} 39... Qb3 {[%clk 0:00:10.3]} 40.
Rd6 {[%clk 0:00:04]} 40... Qxb4 {[%clk 0:00:10.7]} 41. Rxc6 {[%clk 0:00:02.6]}
41... Qxd4 {[%clk 0:00:10.7]} 42. e6 {[%clk 0:00:04]} 42... Qd1+ {[%clk
0:00:11.4]} 43. Kh2 {[%clk 0:00:05.6]} 43... Qe2 {[%clk 0:00:06.9]} 44. exf7+
{[%clk 0:00:04.4]} 44... Kxf7 {[%clk 0:00:08.6]} 45. Rc7+ {[%clk 0:00:04]} 45...
Ke6 {[%clk 0:00:08.1]} 46. Kg1 {[%clk 0:00:04.4]} 46... Kd6 {[%clk 0:00:07.6]}
47. Rf7 {[%clk 0:00:02.3]} 47... Qe1+ {[%clk 0:00:08.2]} 48. Kg2 {[%clk
0:00:03.1]} 48... Ke6 {[%clk 0:00:08.5]} 0-1

[Event "*** MasterClass Titled Tuesday Blitz"]
[Site "Chess.com"]
[Date "2017.12.12"]
[Round "9"]
[White "kereswasbest"]
[Black "arna"]
[Result "1-0"]
[WhiteElo "2219"]
[BlackElo "2133"]
[TimeControl "180+2"]
[EndTime "15:07:41 PST"]
[Termination "kereswasbest won on time"]

1. e4 {[%clk 0:03:01.9]} 1... c5 {[%clk 0:02:59.7]} 2. Nf3 {[%clk 0:03:02.3]}
2... Nc6 {[%clk 0:03:00.6]} 3. d4 {[%clk 0:03:03.8]} 3... cxd4 {[%clk
0:03:02.1]} 4. Nxd4 {[%clk 0:03:05.4]} 4... e5 {[%clk 0:03:03.7]} 5. Nb5 {[%clk
0:03:06]} 5... d6 {[%clk 0:03:05.3]} 6. Bc4 {[%clk 0:03:03.3]} 6... Be6 {[%clk
0:03:02.4]} 7. Bb3 {[%clk 0:02:53.3]} 7... Be7 {[%clk 0:02:56.2]} 8. O-O {[%clk
0:02:53.5]} 8... Nf6 {[%clk 0:02:54.6]} 9. N5c3 {[%clk 0:02:45.3]} 9... Nd4
{[%clk 0:02:51.3]} 10. Bg5 {[%clk 0:02:36.5]} 10... O-O {[%clk 0:02:19.5]} 11.
Bxf6 {[%clk 0:02:33.5]} 11... Bxf6 {[%clk 0:02:19]} 12. Nd5 {[%clk 0:02:31.9]}
12... Bg5 {[%clk 0:02:20]} 13. c3 {[%clk 0:02:25.7]} 13... Nc6 {[%clk
0:02:19.5]} 14. Na3 {[%clk 0:02:16.4]} 14... Ne7 {[%clk 0:02:11]} 15. Nxe7+
{[%clk 0:02:15.4]} 15... Qxe7 {[%clk 0:02:00.6]} 16. Bd5 {[%clk 0:01:59.7]}
16... Rac8 {[%clk 0:01:48.6]} 17. Nc2 {[%clk 0:01:58.7]} 17... Bxd5 {[%clk
0:01:35]} 18. Qxd5 {[%clk 0:01:58.7]} 18... Rc5 {[%clk 0:01:36.1]} 19. Qb3
{[%clk 0:01:54.7]} 19... b6 {[%clk 0:01:28.6]} 20. Rad1 {[%clk 0:01:52.5]} 20...
Rd8 {[%clk 0:01:24]} 21. Nb4 {[%clk 0:01:53.5]} 21... h5 {[%clk 0:01:05.4]} 22.
Rd5 {[%clk 0:01:47.2]} 22... Qe6 {[%clk 0:00:51]} 23. Rfd1 {[%clk 0:01:42.9]}
23... Be7 {[%clk 0:00:43.2]} 24. Qa4 {[%clk 0:01:32.3]} 24... a5 {[%clk
0:00:17.2]} 25. Nc2 {[%clk 0:01:27.5]} 25... Rdc8 {[%clk 0:00:10.2]} 26. Ne3
{[%clk 0:01:25.2]} 26... R5c6 {[%clk 0:00:09.6]} 27. R1d3 {[%clk 0:01:20.2]}
27... g6 {[%clk 0:00:10.2]} 28. Qd1 {[%clk 0:01:19.6]} 28... Bg5 {[%clk
0:00:06.6]} 29. Rxd6 {[%clk 0:01:18.3]} 29... Rxd6 {[%clk 0:00:07.7]} 30. Rxd6
{[%clk 0:01:18.6]} 30... Qxa2 {[%clk 0:00:08.5]} 31. Rxb6 {[%clk 0:01:13.4]}
31... Bxe3 {[%clk 0:00:08.5]} 32. fxe3 {[%clk 0:01:14.2]} 32... Qc4 {[%clk
0:00:07.4]} 33. Rb7 {[%clk 0:01:08.4]} 33... Qxe4 {[%clk 0:00:05.9]} 34. Qf3
{[%clk 0:00:49.7]} 34... Qxf3 {[%clk 0:00:04.8]} 35. gxf3 {[%clk 0:00:51.6]}
35... Rd8 {[%clk 0:00:04.2]} 36. Kg2 {[%clk 0:00:48.7]} 36... Rd2+ {[%clk
0:00:04.7]} 37. Kg3 {[%clk 0:00:49.5]} 37... a4 {[%clk 0:00:05.5]} 38. Rb5
{[%clk 0:00:46.3]} 38... Kg7 {[%clk 0:00:05.9]} 39. h4 {[%clk 0:00:43.5]} 39...
Kf6 {[%clk 0:00:06.1]} 40. c4 {[%clk 0:00:42.1]} 40... Re2 {[%clk 0:00:03.3]}
41. c5 {[%clk 0:00:39.8]} 41... Rxe3 {[%clk 0:00:02.3]} 42. c6 {[%clk 0:00:41]}
42... Ke6 {[%clk 0:00:03.7]} 43. Rc5 {[%clk 0:00:40.7]} 43... Kd6 {[%clk
0:00:02.5]} 44. c7 {[%clk 0:00:41.6]} 44... Kxc5 {[%clk 0:00:03.7]} 45. c8=Q+
{[%clk 0:00:42.6]} 45... Kd4 {[%clk 0:00:04.3]} 46. Qd7+ {[%clk 0:00:40.6]}
46... Kc4 {[%clk 0:00:05.7]} 47. Qxf7+ {[%clk 0:00:41.4]} 47... Kd3 {[%clk
0:00:07]} 48. Qxg6+ {[%clk 0:00:42.2]} 48... Ke2 {[%clk 0:00:08.5]} 49. Qxh5
{[%clk 0:00:42.1]} 49... e4 {[%clk 0:00:07.9]} 50. Qb5+ {[%clk 0:00:37.9]} 50...
Rd3 {[%clk 0:00:06.6]} 51. h5 {[%clk 0:00:34.6]} 51... exf3 {[%clk 0:00:02.4]}
52. Qe5+ {[%clk 0:00:34.7]} 52... Kd2 {[%clk 0:00:02.5]} 53. Kf2 {[%clk
0:00:34.8]} 53... Kc2 {[%clk 0:00:02.3]} 54. Qe4 {[%clk 0:00:35.5]} 54... Kd2
{[%clk 0:00:02.6]} 55. h6 {[%clk 0:00:35.6]} 1-0

[Event "*** MasterClass Titled Tuesday Blitz"]
[Site "Chess.com"]
[Date "2017.12.12"]
[Round "9"]
[White "MITerryble"]
[Black "Kaphrep"]
[Result "0-1"]
[WhiteElo "2668"]
[BlackElo "2641"]
[TimeControl "180+2"]
[EndTime "15:08:29 PST"]
[Termination "Kaphrep won by resignation"]

1. d4 {[%clk 0:03:01.4]} 1... d5 {[%clk 0:02:57.8]} 2. Nf3 {[%clk 0:03:02.4]}
2... Nf6 {[%clk 0:02:57.7]} 3. c4 {[%clk 0:03:03.4]} 3... e6 {[%clk 0:02:58.3]}
4. e3 {[%clk 0:03:04.3]} 4... Be7 {[%clk 0:02:57.8]} 5. Bd3 {[%clk 0:03:05.2]}
5... dxc4 {[%clk 0:02:57.3]} 6. Bxc4 {[%clk 0:03:05.7]} 6... O-O {[%clk
0:02:59.2]} 7. O-O {[%clk 0:03:05.8]} 7... a6 {[%clk 0:02:58.4]} 8. b3 {[%clk
0:03:02.2]} 8... c5 {[%clk 0:02:52.3]} 9. dxc5 {[%clk 0:03:01.5]} 9... Bxc5
{[%clk 0:02:50.2]} 10. Bb2 {[%clk 0:03:02.3]} 10... Nbd7 {[%clk 0:02:46.9]} 11.
Nbd2 {[%clk 0:03:00.5]} 11... b5 {[%clk 0:02:41.5]} 12. Bd3 {[%clk 0:03:01.3]}
12... Bb7 {[%clk 0:02:43.4]} 13. Qe2 {[%clk 0:03:01.8]} 13... Qb8 {[%clk
0:02:21.6]} 14. Rfd1 {[%clk 0:02:59.8]} 14... Rc8 {[%clk 0:02:06.5]} 15. Nf1
{[%clk 0:02:58.9]} 15... Bxf3 {[%clk 0:02:00.3]} 16. Qxf3 {[%clk 0:02:49]} 16...
Ne5 {[%clk 0:02:02.2]} 17. Qe2 {[%clk 0:02:36.6]} 17... Nxd3 {[%clk 0:01:59.4]}
18. Bxf6 {[%clk 0:02:19.7]} 18... Ne5 {[%clk 0:01:54.6]} 19. Bh4 {[%clk
0:02:05.1]} 19... Qb7 {[%clk 0:01:42.6]} 20. Bg3 {[%clk 0:01:58.4]} 20... Nd7
{[%clk 0:01:41.7]} 21. Qd3 {[%clk 0:01:43.5]} 21... Nf6 {[%clk 0:01:38.1]} 22.
Rac1 {[%clk 0:01:41.7]} 22... Ba3 {[%clk 0:01:33.4]} 23. Rxc8+ {[%clk
0:01:39.1]} 23... Rxc8 {[%clk 0:01:35.3]} 24. Be5 {[%clk 0:01:30.2]} 24... Be7
{[%clk 0:01:24]} 25. Ng3 {[%clk 0:01:25.1]} 25... Qc6 {[%clk 0:01:21.2]} 26. h3
{[%clk 0:01:16.9]} 26... Qc2 {[%clk 0:01:16.6]} 27. Qxc2 {[%clk 0:00:48.6]}
27... Rxc2 {[%clk 0:01:14.3]} 28. a4 {[%clk 0:00:49.3]} 28... b4 {[%clk
0:01:05]} 29. Bxf6 {[%clk 0:00:32.2]} 29... gxf6 {[%clk 0:01:02]} 30. Rd7 {[%clk
0:00:30.6]} 30... Kf8 {[%clk 0:01:00.7]} 31. Ra7 {[%clk 0:00:27.8]} 31... Rc3
{[%clk 0:01:01.5]} 32. Nh5 {[%clk 0:00:22.5]} 32... Bd8 {[%clk 0:00:53.7]} 33.
Rxa6 {[%clk 0:00:20.7]} 33... Rxb3 {[%clk 0:00:53.4]} 34. Ra8 {[%clk 0:00:21.3]}
34... Rb1+ {[%clk 0:00:48.3]} 35. Kh2 {[%clk 0:00:20.9]} 35... Ke7 {[%clk
0:00:50.2]} 36. Ra7+ {[%clk 0:00:20.2]} 36... Kd6 {[%clk 0:00:48.1]} 37. Rxf7
{[%clk 0:00:18]} 37... b3 {[%clk 0:00:49.4]} 38. Rb7 {[%clk 0:00:18.7]} 38...
Kc6 {[%clk 0:00:42]} 39. Rb5 {[%clk 0:00:18.9]} 39... Bc7+ {[%clk 0:00:41.8]}
40. f4 {[%clk 0:00:18.5]} 40... Bb6 {[%clk 0:00:39.7]} 41. Nxf6 {[%clk 0:00:12]}
41... Bxe3 {[%clk 0:00:40.9]} 42. Kg3 {[%clk 0:00:12.9]} 42... b2 {[%clk
0:00:38.9]} 43. Ng4 {[%clk 0:00:13.7]} 43... Bxf4+ {[%clk 0:00:34.8]} 44. Kxf4
{[%clk 0:00:14]} 44... Rf1+ {[%clk 0:00:36.1]} 45. Ke5 {[%clk 0:00:14.8]} 45...
Rf5+ {[%clk 0:00:27.1]} 46. Kxe6 {[%clk 0:00:09]} 46... Rxb5 {[%clk 0:00:28]}
47. axb5+ {[%clk 0:00:09.4]} 47... Kb7 {[%clk 0:00:26.2]} 48. Kf5 {[%clk
0:00:03.4]} 48... b1=Q+ {[%clk 0:00:26.7]} 49. Kf4 {[%clk 0:00:05.2]} 49... Qxb5
{[%clk 0:00:26.2]} 50. Ne5 {[%clk 0:00:05.2]} 50... Kc7 {[%clk 0:00:26.8]} 51.
Nf3 {[%clk 0:00:05.6]} 51... Kd6 {[%clk 0:00:27.6]} 52. g4 {[%clk 0:00:06.3]}
52... Ke7 {[%clk 0:00:25.8]} 53. h4 {[%clk 0:00:07.2]} 53... Qb8+ {[%clk
0:00:24.9]} 54. Kf5 {[%clk 0:00:08]} 54... Qf8+ {[%clk 0:00:25.6]} 55. Ke4
{[%clk 0:00:09.1]} 55... Qf6 {[%clk 0:00:26]} 56. h5 {[%clk 0:00:06.3]} 56... h6
{[%clk 0:00:26.3]} 57. Nd4 {[%clk 0:00:07.2]} 57... Kf7 {[%clk 0:00:25.3]} 58.
Nf5 {[%clk 0:00:07.9]} 58... Qb6 {[%clk 0:00:20.2]} 59. Ke5 {[%clk 0:00:07.6]}
59... Qb2+ {[%clk 0:00:20.5]} 60. Ke4 {[%clk 0:00:07.6]} 60... Kf6 {[%clk
0:00:18.9]} 61. Nxh6 {[%clk 0:00:08]} 61... Qe2+ {[%clk 0:00:19.7]} 62. Kf4
{[%clk 0:00:06.8]} 62... Qd2+ {[%clk 0:00:21]} 63. Kg3 {[%clk 0:00:08.1]} 63...
Qxh6 {[%clk 0:00:21.8]} 64. Kf3 {[%clk 0:00:09.9]} 64... Kg5 {[%clk 0:00:22.3]}
65. Kg3 {[%clk 0:00:10.4]} 65... Qe6 {[%clk 0:00:24.2]} 66. Kf3 {[%clk
0:00:11.4]} 66... Qxg4+ {[%clk 0:00:23.5]} 0-1